fUSD/lending_fUSD_20260617
["ID","MTS","AMOUNT","RATE_DAILY","PERIOD"]
[425254959,1781634698000,-151.0,0.00035,7]
[425254958,1781634698000,-1000.536956,0.00035,7]
[425254963,1781634698000,-182.366081,0.00035,7]
[425254961,1781634698000,-263.75643,0.00035,7]
[425254966,1781634698000,-2917.101576,0.00035,7]
[425254962,1781634698000,-1000.536956,0.00035,7]
[425254960,1781634698000,-589.381274,0.00035,7]
[425254965,1781634698000,-238.920172,0.00035,7]
[425254906,1781634698000,-3342.977326,0.00035,7]
[425254964,1781634698000,-2917.101576,0.00035,7]
[425254950,1781634698000,-263.75643,0.00035,7]
[425254938,1781634698000,-993.360127,0.00035,7]
[425254957,1781634698000,-3324.68781,0.00035,7]
[425254936,1781634698000,-770.514652,0.00035,7]
[425254911,1781634698000,-238.014868,0.00035,3]
[425254908,1781634698000,-4573.124125,0.00035,7]
[425254935,1781634698000,-3324.68781,0.00035,7]
[425254913,1781634698000,-1088.650014,0.00035,7]
[425254914,1781634698000,-3813.815129,0.00035,7]
[425254915,1781634698000,-1357.542871,0.00035,7]
[425254917,1781634698000,-993.360127,0.00035,7]
[425254916,1781634698000,-390.824516,0.00035,7]
[425254919,1781634698000,-4573.124125,0.00035,7]
[425254918,1781634698000,-750.075801,0.00035,7]
[425254922,1781634698000,-1357.542871,0.00035,7]
[425254920,1781634698000,-770.514652,0.00035,7]
[425254921,1781634698000,-3342.977326,0.00035,7]
[425254923,1781634698000,-3813.815129,0.00035,7]
[425254924,1781634698000,-1088.650014,0.00035,7]
[425254937,1781634698000,-660.446682,0.00035,7]
[425254946,1781634698000,-390.824516,0.00035,7]
[425254926,1781634698000,-993.360127,0.00035,7]
[425254932,1781634698000,-3813.815129,0.00035,7]
[425254934,1781634698000,-390.824516,0.00035,7]
[425254931,1781634698000,-3342.977326,0.00035,7]
[425254927,1781634698000,-770.514652,0.00035,7]
[425254933,1781634698000,-1357.542871,0.00035,7]
[425254928,1781634698000,-4573.124125,0.00035,7]
[425254929,1781634698000,-660.446682,0.00035,7]
[425254930,1781634698000,-179.317282,0.00035,7]
[425254925,1781634698000,-390.824516,0.00035,7]
[425255009,1781634699000,-198.081191,0.00035,7]
[425255003,1781634699000,-3101.713156,0.00035,7]
[425255007,1781634699000,-399.18849,0.00035,7]
[425254997,1781634699000,-168.02051,0.00035,7]
[425255006,1781634699000,-692.07998,0.00035,7]
[425255005,1781634699000,-151.0,0.00035,7]
[425255001,1781634699000,-692.07998,0.00035,7]
[425255000,1781634699000,-1329.178592,0.00035,7]
[425255002,1781634699000,-168.02051,0.00035,7]
[425254998,1781634699000,-3101.713156,0.00035,7]
[425255019,1781634699000,-692.07998,0.00035,7]
[425255004,1781634699000,-388.413835,0.00035,7]
[425255008,1781634699000,-931.731581,0.00035,7]
[425255022,1781634699000,-388.413835,0.00035,7]
[425255014,1781634699000,-198.081191,0.00035,7]
[425255010,1781634699000,-388.413835,0.00035,7]
[425255012,1781634699000,-692.07998,0.00035,7]
[425255013,1781634699000,-931.731581,0.00035,7]
[425255016,1781634699000,-1350.019466,0.00035,7]
[425255015,1781634699000,-388.413835,0.00035,7]
[425255018,1781634699000,-931.731581,0.00035,7]
[425255020,1781634699000,-198.081191,0.00035,7]
[425255024,1781634699000,-399.18849,0.00035,7]
[425255023,1781634699000,-1350.019466,0.00035,7]
[425255026,1781634699000,-198.081191,0.00035,7]
[425254999,1781634699000,-1849.434566,0.00035,7]
[425255011,1781634699000,-399.18849,0.00035,7]
[425254992,1781634699000,-1849.434566,0.00035,7]
[425254971,1781634699000,-529.999072,0.00035,7]
[425254990,1781634699000,-1329.178592,0.00035,7]
[425255025,1781634699000,-931.731581,0.00035,7]
[425254970,1781634699000,-326.137243,0.00035,7]
[425254969,1781634699000,-1495.172888,0.00035,7]
[425254967,1781634699000,-238.920172,0.00035,7]
[425254968,1781634699000,-204.366753,0.00035,7]
[425254972,1781634699000,-2917.101576,0.00035,7]
[425254980,1781634699000,-1495.172888,0.00035,7]
[425254976,1781634699000,-326.137243,0.00035,7]
[425254979,1781634699000,-238.920172,0.00035,7]
[425254973,1781634699000,-238.920172,0.00035,7]
[425254983,1781634699000,-204.366753,0.00035,7]
[425254974,1781634699000,-204.366753,0.00035,7]
[425254982,1781634699000,-529.999072,0.00035,7]
[425254975,1781634699000,-1495.172888,0.00035,7]
[425254981,1781634699000,-326.137243,0.00035,7]
[425254977,1781634699000,-529.999072,0.00035,7]
[425254978,1781634699000,-2917.101576,0.00035,7]
[425254996,1781634699000,-1329.178592,0.00035,7]
[425254995,1781634699000,-1849.434566,0.00035,7]
[425254994,1781634699000,-168.02051,0.00035,7]
[425254993,1781634699000,-1329.178592,0.00035,7]
[425254985,1781634699000,-326.137243,0.00035,7]
[425254988,1781634699000,-200.0,0.00035,120]
[425254984,1781634699000,-1495.172888,0.00035,7]
[425254986,1781634699000,-529.999072,0.00035,7]
[425254987,1781634699000,-204.366753,0.00035,7]
[425254989,1781634699000,-1849.434566,0.00035,7]
[425254991,1781634699000,-168.02051,0.00035,7]
[425255021,1781634699000,-1997.775072,0.00035,7]
[425255017,1781634699000,-399.18849,0.00035,7]
[425255030,1781634699000,-2721.127501,0.00035,7]
[425255064,1781634699000,-158.474782,0.00035,7]
[425255067,1781634699000,-1289.520228,0.00035,7]
[425255059,1781634699000,-411.575731,0.00035,7]
[425255060,1781634699000,-1661.404131,0.00035,7]
[425255061,1781634699000,-1289.520228,0.00035,7]
[425255063,1781634699000,-3083.666204,0.00035,7]
[425255062,1781634699000,-1692.961456,0.00035,7]
[425255066,1781634699000,-411.575731,0.00035,7]
[425255076,1781634699000,-1692.961456,0.00035,7]
[425255071,1781634699000,-3083.666204,0.00035,7]
[425255069,1781634699000,-1661.404131,0.00035,7]
[425255070,1781634699000,-1456.594552,0.00035,7]
[425255080,1781634699000,-7472.9621,0.00035019,2]
[425255074,1781634699000,-1289.520228,0.00035,7]
[425255079,1781634699000,-2452.5119,0.00035019,2]
[425255077,1781634699000,-1456.594552,0.00035,7]
[425255073,1781634699000,-1382.607938,0.00035,7]
[425255072,1781634699000,-158.474782,0.00035,7]
[425255078,1781634699000,-166.95098795,0.00035013,7]
[425255075,1781634699000,-411.575731,0.00035,7]
[425255082,1781634699000,-278.94,0.0003503,30]
[425255083,1781634699000,-5018.39194487,0.00035038,2]
[425255081,1781634699000,-156.0,0.00035028,30]
[425255087,1781634699000,-5000.0,0.00035038,2]
[425255086,1781634699000,-5000.0,0.00035038,2]
[425255085,1781634699000,-5000.0,0.00035038,2]
[425255027,1781634699000,-1997.775072,0.00035,7]
[425255065,1781634699000,-1382.607938,0.00035,7]
[425255057,1781634699000,-196.575907,0.00035,7]
[425255084,1781634699000,-5000.0,0.00035038,2]
[425255058,1781634699000,-2301.506184,0.00035,7]
[425255068,1781634699000,-1692.961456,0.00035,7]
[425255031,1781634699000,-1997.775072,0.00035,7]
[425255029,1781634699000,-1350.019466,0.00035,7]
[425255028,1781634699000,-3101.713156,0.00035,7]
[425255033,1781634699000,-1350.019466,0.00035,7]
[425255034,1781634699000,-2301.506184,0.00035,7]
[425255044,1781634699000,-196.575907,0.00035,7]
[425255037,1781634699000,-2301.506184,0.00035,7]
[425255035,1781634699000,-2721.127501,0.00035,7]
[425255036,1781634699000,-1997.775072,0.00035,7]
[425255040,1781634699000,-196.575907,0.00035,7]
[425255039,1781634699000,-2721.127501,0.00035,7]
[425255038,1781634699000,-1318.157382,0.00035,7]
[425255043,1781634699000,-2721.127501,0.00035,7]
[425255032,1781634699000,-3101.713156,0.00035,7]
[425255041,1781634699000,-151.0,0.00035,7]
[425255042,1781634699000,-1318.157382,0.00035,7]
[425255052,1781634699000,-2301.506184,0.00035,7]
[425255049,1781634699000,-196.575907,0.00035,7]
[425255050,1781634699000,-151.0,0.00035,7]
[425255053,1781634699000,-1318.157382,0.00035,7]
[425255055,1781634699000,-1289.520228,0.00035,7]
[425255054,1781634699000,-1661.404131,0.00035,7]
[425255048,1781634699000,-3083.666204,0.00035,7]
[425255047,1781634699000,-1318.157382,0.00035,7]
[425255056,1781634699000,-3083.666204,0.00035,7]
[425255045,1781634699000,-151.0,0.00035,7]
[425255046,1781634699000,-1661.404131,0.00035,7]
[425255051,1781634699000,-151.0,0.00035,7]
[425255128,1781634700000,-200.0,0.000354,14]
[425255129,1781634700000,-200.0,0.000354,60]
[425255119,1781634700000,-648.01,0.00035303,10]
[425255123,1781634700000,-500.0,0.00035325,30]
[425255125,1781634700000,-2452.5119,0.00035389,2]
[425255126,1781634700000,-7472.9621,0.00035389,2]
[425255120,1781634700000,-337.75,0.00035303,10]
[425255127,1781634700000,-1117.2663,0.00035389,2]
[425255122,1781634700000,-500.0,0.00035325,30]
[425255135,1781634700000,-500.0,0.000354,60]
[425255124,1781634700000,-377.0,0.00035337,2]
[425255118,1781634700000,-2500.0,0.000353,14]
[425255133,1781634700000,-500.0,0.000354,60]
[425255138,1781634700000,-25000.0,0.00035402,10]
[425255137,1781634700000,-204.0,0.000354,120]
[425255134,1781634700000,-500.0,0.000354,60]
[425255140,1781634700000,-3267.01,0.00035416,60]
[425255139,1781634700000,-25000.0,0.00035411,10]
[425255141,1781634700000,-25000.0,0.0003542,10]
[425255132,1781634700000,-500.0,0.000354,60]
[425255130,1781634700000,-500.0,0.000354,60]
[425255131,1781634700000,-500.0,0.000354,60]
[425255142,1781634700000,-158.5076289,0.00035422,7]
[425255144,1781634700000,-25000.0,0.00035429,10]
[425255145,1781634700000,-476.10443138,0.00035433,2]
[425255121,1781634700000,-158.25033973,0.00035316,3]
[425255136,1781634700000,-486.87669453,0.000354,60]
[425255110,1781634700000,-2239.76880057,0.00035205,30]
[425255103,1781634700000,-152.0,0.00035135,12]
[425255114,1781634700000,-615.433365,0.00035279,120]
[425255090,1781634700000,-304.0,0.00035049,30]
[425255091,1781634700000,-1853.0,0.00035049,30]
[425255092,1781634700000,-2694.0,0.00035049,30]
[425255088,1781634700000,-418.0,0.00035049,30]
[425255089,1781634700000,-418.0,0.00035049,30]
[425255093,1781634700000,-346.0,0.00035049,30]
[425255094,1781634700000,-328.0,0.00035049,30]
[425255099,1781634700000,-335.0,0.00035049,30]
[425255095,1781634700000,-792.0,0.00035049,30]
[425255098,1781634700000,-1535.0,0.00035049,30]
[425255102,1781634700000,-1000.0,0.00035093,50]
[425255096,1781634700000,-438.0,0.00035049,30]
[425255112,1781634700000,-2452.5119,0.00035266,2]
[425255097,1781634700000,-514.0,0.00035049,30]
[425255100,1781634700000,-819.0,0.00035049,30]
[425255104,1781634700000,-2452.5119,0.00035143,2]
[425255101,1781634700000,-150.0,0.00035066,30]
[425255107,1781634700000,-204.0,0.0003515,120]
[425255106,1781634700000,-723.0,0.00035147,10]
[425255109,1781634700000,-1133.14232861,0.00035202,2]
[425255115,1781634700000,-150.0,0.00035285,2]
[425255116,1781634700000,-150.0,0.00035285,2]
[425255108,1781634700000,-3000.0,0.000352,30]
[425255117,1781634700000,-150.0,0.00035285,2]
[425255113,1781634700000,-7472.9621,0.00035266,2]
[425255111,1781634700000,-1586.84,0.00035224,5]
[425255105,1781634700000,-7472.9621,0.00035143,2]
[425255151,1781634700000,-100000.0,0.00035455,90]
[425255143,1781634700000,-2018.3914846,0.00035423,15]
[425255152,1781634700000,-100000.0,0.00035455,60]
[425255187,1781634700000,-440.458877,0.00035455,7]
[425255179,1781634700000,-300.517851,0.00035455,7]
[425255181,1781634700000,-440.458877,0.00035455,7]
[425255188,1781634700000,-151.0,0.00035455,7]
[425255182,1781634700000,-151.0,0.00035455,7]
[425255184,1781634700000,-636.872775,0.00035455,7]
[425255183,1781634700000,-234.635032,0.00035455,7]
[425255185,1781634700000,-300.517851,0.00035455,7]
[425255186,1781634700000,-319.326811,0.00035455,7]
[425255189,1781634700000,-234.635032,0.00035455,7]
[425255191,1781634700000,-300.517851,0.00035455,7]
[425255190,1781634700000,-636.872775,0.00035455,7]
[425255180,1781634700000,-319.326811,0.00035455,7]
[425255193,1781634700000,-636.872775,0.00035455,7]
[425255194,1781634700000,-319.326811,0.00035455,7]
[425255198,1781634700000,-500.0,0.00035455,7]
[425255199,1781634700000,-227.497261,0.00035455,7]
[425255196,1781634700000,-227.497261,0.00035455,7]
[425255197,1781634700000,-339.484082,0.00035455,7]
[425255195,1781634700000,-500.0,0.00035455,7]
[425255201,1781634700000,-500.0,0.00035455,7]
[425255202,1781634700000,-227.497261,0.00035455,7]
[425255205,1781634700000,-227.497261,0.00035455,7]
[425255203,1781634700000,-339.484082,0.00035455,7]
[425255204,1781634700000,-500.0,0.00035455,7]
[425255148,1781634700000,-100000.0,0.00035455,120]
[425255192,1781634700000,-319.326811,0.00035455,7]
[425255172,1781634700000,-151.0,0.00035455,7]
[425255200,1781634700000,-339.484082,0.00035455,7]
[425255173,1781634700000,-440.458877,0.00035455,7]
[425255149,1781634700000,-100000.0,0.00035455,7]
[425255175,1781634700000,-300.517851,0.00035455,7]
[425255150,1781634700000,-100000.0,0.00035455,30]
[425255147,1781634700000,-25000.0,0.00035446,10]
[425255146,1781634700000,-25000.0,0.00035437,10]
[425255153,1781634700000,-165.495048,0.00035455,7]
[425255155,1781634700000,-165.495048,0.00035455,7]
[425255154,1781634700000,-165.495048,0.00035455,7]
[425255157,1781634700000,-247.728374,0.00035455,7]
[425255165,1781634700000,-151.0,0.00035455,7]
[425255158,1781634700000,-247.728374,0.00035455,7]
[425255159,1781634700000,-151.0,0.00035455,7]
[425255161,1781634700000,-151.0,0.00035455,7]
[425255162,1781634700000,-151.0,0.00035455,7]
[425255156,1781634700000,-165.495048,0.00035455,7]
[425255163,1781634700000,-247.728374,0.00035455,7]
[425255174,1781634700000,-234.635032,0.00035455,7]
[425255170,1781634700000,-151.0,0.00035455,7]
[425255171,1781634700000,-290.2149,0.00035455,7]
[425255177,1781634700000,-234.635032,0.00035455,7]
[425255169,1781634700000,-290.2149,0.00035455,7]
[425255168,1781634700000,-151.0,0.00035455,7]
[425255176,1781634700000,-440.458877,0.00035455,7]
[425255178,1781634700000,-636.872775,0.00035455,7]
[425255167,1781634700000,-290.2149,0.00035455,7]
[425255164,1781634700000,-151.0,0.00035455,7]
[425255160,1781634700000,-247.728374,0.00035455,7]
[425255166,1781634700000,-290.2149,0.00035455,7]
[425255255,1781634701000,-431.135298,0.00035455,7]
[425255249,1781634701000,-444.015746,0.00035455,7]
[425255245,1781634701000,-151.0,0.00035455,7]
[425255247,1781634701000,-276.683965,0.00035455,7]
[425255248,1781634701000,-561.281623,0.00035455,7]
[425255244,1781634701000,-779.734032,0.00035455,7]
[425255246,1781634701000,-273.624961,0.00035455,7]
[425255243,1781634701000,-276.683965,0.00035455,7]
[425255242,1781634701000,-246.847888,0.00035455,7]
[425255241,1781634701000,-151.0,0.00035455,7]
[425255233,1781634701000,-246.847888,0.00035455,7]
[425255239,1781634701000,-151.0,0.00035455,7]
[425255240,1781634701000,-779.734032,0.00035455,7]
[425255257,1781634701000,-348.953007,0.00035455,7]
[425255265,1781634701000,-431.135298,0.00035455,7]
[425255260,1781634701000,-561.281623,0.00035455,7]
[425255250,1781634701000,-276.683965,0.00035455,7]
[425255258,1781634701000,-444.015746,0.00035455,7]
[425255256,1781634701000,-561.281623,0.00035455,7]
[425255259,1781634701000,-431.135298,0.00035455,7]
[425255261,1781634701000,-348.953007,0.00035455,7]
[425255252,1781634701000,-561.281623,0.00035455,7]
[425255253,1781634701000,-348.953007,0.00035455,7]
[425255254,1781634701000,-444.015746,0.00035455,7]
[425255251,1781634701000,-151.0,0.00035455,7]
[425255263,1781634701000,-431.135298,0.00035455,7]
[425255266,1781634701000,-318.766613,0.00035455,7]
[425255231,1781634701000,-245.943395,0.00035455,7]
[425255262,1781634701000,-444.015746,0.00035455,7]
[425255236,1781634701000,-151.0,0.00035455,7]
[425255212,1781634701000,-291.872511,0.00035455,7]
[425255235,1781634701000,-779.734032,0.00035455,7]
[425255267,1781634701000,-318.766613,0.00035455,7]
[425255213,1781634701000,-151.0,0.00035455,7]
[425255208,1781634701000,-291.872511,0.00035455,7]
[425255209,1781634701000,-291.872511,0.00035455,7]
[425255207,1781634701000,-151.0,0.00035455,7]
[425255210,1781634701000,-291.872511,0.00035455,7]
[425255206,1781634701000,-339.484082,0.00035455,7]
[425255211,1781634701000,-151.0,0.00035455,7]
[425255214,1781634701000,-210.676342,0.00035455,7]
[425255215,1781634701000,-210.676342,0.00035455,7]
[425255216,1781634701000,-151.0,0.00035455,7]
[425255226,1781634701000,-245.943395,0.00035455,7]
[425255220,1781634701000,-210.676342,0.00035455,7]
[425255237,1781634701000,-246.847888,0.00035455,7]
[425255218,1781634701000,-151.0,0.00035455,7]
[425255225,1781634701000,-405.225153,0.00035455,7]
[425255221,1781634701000,-151.0,0.00035455,7]
[425255217,1781634701000,-210.676342,0.00035455,7]
[425255222,1781634701000,-405.225153,0.00035455,7]
[425255223,1781634701000,-245.943395,0.00035455,7]
[425255224,1781634701000,-151.0,0.00035455,7]
[425255238,1781634701000,-276.683965,0.00035455,7]
[425255228,1781634701000,-245.943395,0.00035455,7]
[425255229,1781634701000,-246.847888,0.00035455,7]
[425255227,1781634701000,-405.225153,0.00035455,7]
[425255230,1781634701000,-779.734032,0.00035455,7]
[425255234,1781634701000,-151.0,0.00035455,7]
[425255232,1781634701000,-151.0,0.00035455,7]
[425255219,1781634701000,-405.225153,0.00035455,7]
[425255271,1781634701000,-318.766613,0.00035455,7]
[425255316,1781634701000,-285.509618,0.00035455,7]
[425255268,1781634701000,-182.273075,0.00035455,7]
[425255308,1781634701000,-285.509618,0.00035455,7]
[425255304,1781634701000,-446.097716,0.00035455,7]
[425255302,1781634701000,-359.604307,0.00035455,7]
[425255303,1781634701000,-2023.395163,0.00035455,7]
[425255314,1781634701000,-2023.395163,0.00035455,7]
[425255307,1781634701000,-295.776808,0.00035455,7]
[425255313,1781634701000,-2191.507944,0.00035455,7]
[425255305,1781634701000,-295.776808,0.00035455,7]
[425255301,1781634701000,-446.097716,0.00035455,7]
[425255309,1781634701000,-2191.507944,0.00035455,7]
[425255306,1781634701000,-2023.395163,0.00035455,7]
[425255311,1781634701000,-295.776808,0.00035455,7]
[425255315,1781634701000,-295.776808,0.00035455,7]
[425255310,1781634701000,-2023.395163,0.00035455,7]
[425255317,1781634701000,-2191.507944,0.00035455,7]
[425255321,1781634701000,-804.200528,0.00035455,7]
[425255330,1781634701000,-1043.491586,0.00035455,7]
[425255323,1781634701000,-804.200528,0.00035455,7]
[425255320,1781634701000,-804.200528,0.00035455,7]
[425255319,1781634701000,-2191.507944,0.00035455,7]
[425255322,1781634701000,-151.0,0.00035455,7]
[425255318,1781634701000,-285.509618,0.00035455,7]
[425255324,1781634701000,-151.0,0.00035455,7]
[425255325,1781634701000,-804.200528,0.00035455,7]
[425255328,1781634701000,-1043.491586,0.00035455,7]
[425255327,1781634701000,-531.576095,0.00035455,7]
[425255329,1781634701000,-531.576095,0.00035455,7]
[425255273,1781634701000,-182.273075,0.00035455,7]
[425255326,1781634701000,-1043.491586,0.00035455,7]
[425255312,1781634701000,-285.509618,0.00035455,7]
[425255331,1781634701000,-151.0,0.00035455,7]
[425255295,1781634701000,-359.604307,0.00035455,7]
[425255300,1781634701000,-359.604307,0.00035455,7]
[425255270,1781634701000,-182.273075,0.00035455,7]
[425255264,1781634701000,-348.953007,0.00035455,7]
[425255269,1781634701000,-318.766613,0.00035455,7]
[425255272,1781634701000,-182.273075,0.00035455,7]
[425255275,1781634701000,-859.813943,0.00035455,7]
[425255286,1781634701000,-185.321464,0.00035455,7]
[425255276,1781634701000,-859.813943,0.00035455,7]
[425255287,1781634701000,-824.929484,0.00035455,7]
[425255277,1781634701000,-1679.864526,0.00035455,7]
[425255279,1781634701000,-1679.864526,0.00035455,7]
[425255280,1781634701000,-1679.864526,0.00035455,7]
[425255278,1781634701000,-859.813943,0.00035455,7]
[425255281,1781634701000,-151.0,0.00035455,7]
[425255274,1781634701000,-859.813943,0.00035455,7]
[425255285,1781634701000,-824.929484,0.00035455,7]
[425255284,1781634701000,-151.0,0.00035455,7]
[425255290,1781634701000,-359.604307,0.00035455,7]
[425255293,1781634701000,-446.097716,0.00035455,7]
[425255294,1781634701000,-151.0,0.00035455,7]
[425255297,1781634701000,-185.321464,0.00035455,7]
[425255296,1781634701000,-151.0,0.00035455,7]
[425255292,1781634701000,-151.0,0.00035455,7]
[425255288,1781634701000,-185.321464,0.00035455,7]
[425255282,1781634701000,-824.929484,0.00035455,7]
[425255299,1781634701000,-151.0,0.00035455,7]
[425255283,1781634701000,-1679.864526,0.00035455,7]
[425255298,1781634701000,-446.097716,0.00035455,7]
[425255291,1781634701000,-185.321464,0.00035455,7]
[425255289,1781634701000,-824.929484,0.00035455,7]
[425255369,1781634702000,-178.676286,0.00035455,7]
[425255360,1781634702000,-565.339658,0.00035455,7]
[425255364,1781634702000,-565.339658,0.00035455,7]
[425255365,1781634702000,-153.345475,0.00035455,7]
[425255370,1781634702000,-444.342287,0.00035455,7]
[425255368,1781634702000,-457.237893,0.00035455,7]
[425255366,1781634702000,-444.342287,0.00035455,7]
[425255367,1781634702000,-153.345475,0.00035455,7]
[425255372,1781634702000,-153.345475,0.00035455,7]
[425255371,1781634702000,-457.237893,0.00035455,7]
[425255362,1781634702000,-349.587098,0.00035455,7]
[425255373,1781634702000,-178.676286,0.00035455,7]
[425255376,1781634702000,-178.676286,0.00035455,7]
[425255375,1781634702000,-457.237893,0.00035455,7]
[425255384,1781634702000,-25000.0,0.00035455,10]
[425255383,1781634702000,-485.373543,0.00035455,7]
[425255385,1781634702000,-154.360703,0.00035455,7]
[425255374,1781634702000,-444.342287,0.00035455,7]
[425255377,1781634702000,-444.342287,0.00035455,7]
[425255378,1781634702000,-457.237893,0.00035455,7]
[425255380,1781634702000,-485.373543,0.00035455,7]
[425255382,1781634702000,-485.373543,0.00035455,7]
[425255379,1781634702000,-178.676286,0.00035455,7]
[425255355,1781634702000,-159.216083,0.00035455,7]
[425255381,1781634702000,-485.373543,0.00035455,7]
[425255363,1781634702000,-153.345475,0.00035455,7]
[425255356,1781634702000,-565.339658,0.00035455,7]
[425255343,1781634702000,-151.0,0.00035455,7]
[425255352,1781634702000,-565.339658,0.00035455,7]
[425255386,1781634702000,-154.360703,0.00035455,7]
[425255338,1781634702000,-151.0,0.00035455,7]
[425255333,1781634702000,-294.481292,0.00035455,7]
[425255332,1781634702000,-531.576095,0.00035455,7]
[425255336,1781634702000,-531.576095,0.00035455,7]
[425255337,1781634702000,-294.481292,0.00035455,7]
[425255335,1781634702000,-151.0,0.00035455,7]
[425255334,1781634702000,-1043.491586,0.00035455,7]
[425255339,1781634702000,-294.481292,0.00035455,7]
[425255340,1781634702000,-294.481292,0.00035455,7]
[425255348,1781634702000,-159.216083,0.00035455,7]
[425255341,1781634702000,-1095.552126,0.00035455,7]
[425255345,1781634702000,-151.0,0.00035455,7]
[425255346,1781634702000,-4284.084501,0.00035455,7]
[425255349,1781634702000,-151.0,0.00035455,7]
[425255342,1781634702000,-1095.552126,0.00035455,7]
[425255344,1781634702000,-1095.552126,0.00035455,7]
[425255347,1781634702000,-1095.552126,0.00035455,7]
[425255350,1781634702000,-349.587098,0.00035455,7]
[425255361,1781634702000,-4284.084501,0.00035455,7]
[425255351,1781634702000,-159.216083,0.00035455,7]
[425255354,1781634702000,-349.587098,0.00035455,7]
[425255357,1781634702000,-4284.084501,0.00035455,7]
[425255353,1781634702000,-4284.084501,0.00035455,7]
[425255358,1781634702000,-349.587098,0.00035455,7]
[425255359,1781634702000,-159.216083,0.00035455,7]
[425255388,1781634702000,-154.360703,0.00035455,7]
[425255400,1781634702000,-151.0,0.00035455,7]
[425255389,1781634702000,-613.818555,0.00035455,7]
[425255418,1781634702000,-829.119171,0.00035455,7]
[425255421,1781634702000,-752.376142,0.00035455,7]
[425255422,1781634702000,-257.193721,0.00035455,7]
[425255423,1781634702000,-829.119171,0.00035455,7]
[425255427,1781634702000,-300.158624,0.00035455,7]
[425255426,1781634702000,-413.364487,0.00035455,7]
[425255425,1781634702000,-282.65565,0.00035455,7]
[425255432,1781634702000,-300.158624,0.00035455,7]
[425255428,1781634702000,-257.193721,0.00035455,7]
[425255429,1781634702000,-959.182333,0.00035455,7]
[425255430,1781634702000,-282.65565,0.00035455,7]
[425255424,1781634702000,-959.182333,0.00035455,7]
[425255433,1781634702000,-257.193721,0.00035455,7]
[425255431,1781634702000,-413.364487,0.00035455,7]
[425255436,1781634702000,-413.364487,0.00035455,7]
[425255434,1781634702000,-151.0,0.00035455,7]
[425255387,1781634702000,-241.248933,0.00035455,7]
[425255438,1781634702000,-300.158624,0.00035455,7]
[425255437,1781634702000,-365.581203,0.00035455,7]
[425255440,1781634702000,-151.0,0.00035455,7]
[425255439,1781634702000,-257.193721,0.00035455,7]
[425255443,1781634702000,-365.581203,0.00035455,7]
[425255441,1781634702000,-303.471344,0.00035455,7]
[425255444,1781634702000,-303.471344,0.00035455,7]
[425255442,1781634702000,-413.364487,0.00035455,7]
[425255419,1781634702000,-282.65565,0.00035455,7]
[425255416,1781634702000,-752.376142,0.00035455,7]
[425255435,1781634702000,-282.65565,0.00035455,7]
[425255420,1781634702000,-300.158624,0.00035455,7]
[425255417,1781634702000,-959.182333,0.00035455,7]
[425255391,1781634702000,-154.360703,0.00035455,7]
[425255395,1781634702000,-151.0,0.00035455,7]
[425255398,1781634702000,-241.248933,0.00035455,7]
[425255390,1781634702000,-241.248933,0.00035455,7]
[425255396,1781634702000,-613.818555,0.00035455,7]
[425255393,1781634702000,-241.248933,0.00035455,7]